Workbook

Sheet Case Calculator
O1: 0.005
A2: Business Case Calculator
AB3: Lifetime | AE3: cost per repair
A4: Inputs are blue. | AB4: 1 | AC4: 0.005 | AE4: =M10+(E17*E18)+E19 -> 57.5 | AF4: replace chain | AX4: km | AY4: cost
AB5: 2 | AC5: 0.01
B6: Bike Share Program | J6: Current Bike Drive System | U6: Gates Carbon Drive | AB6: 3 | AC6: 0.015
B7: Bike share name | E7: Renaissance Bike Share | J7: Lifetime expectancy bike in years | M7: 3 | U7: APPLIED PRICE | V7: 100 | AB7: 4
B8: Contact person | E8: Galileo | J8: Drive Type | M8: Chain | AB8: 5
B9: # bikes | E9: 3000 | J9: Drive Brand/Model | M9: XYZ/V2 | AB9: 6
B10: # stations | E10: 0 | J10: Cost of system per drive | M10: 15 | AB10: 7
B11: # of cities | E11: 1 | J11: Cost of total bike | M11: 900 | AB11: 8
B12: Location of city | AB12: 9
R13: Assumptions | AB13: 10
B14: Cost of Ownership | J14: Service Level Agreement | R14: Chain life assumed 5000 km
B15: # km per bike per year | E15: 10000 | R15: CDX life assumed 30,000 km
B16: # of repairs per chain per year | E16: 2 | J16: Minimum bikes operational | M16: 2500 | R16: CDX repairs assumed 0.05% of chain.
B17: Costs technician per hour | E17: 45 | J17: T-A-T per repair in days | M17: 4
B18: # hours per repair | E18: 0.5 | J18: Bikes out of order (drive related) | M18: =CEILING(V90,1) -> 66
B19: Cost per pick up | E19: 20 | J19: Investment value defective stock | M19: =V91 -> 59178.08219
T31: Cost of ownership per time | W31: replace only
U32: 1km | V32: 1month | W32: km per drive | X32: drive buy | Y32: km/mnth | Z32: =$E$15/12 -> 833.3333333
S33: bike | T33: =$M$8 -> Chain | U33: =(X33+(E17*E18)+E19)/W33 -> 0.0115 | V33: =U33*$Z$32 -> 9.583333333 | W33: =E15/E16 -> 5000 | X33: =$M$10 -> 15
T34: CDX | U34: =((X34+(E17*E18)+E19)/W34)+((((E17*E18)+E19)/W34)*O1) -> 0.004757083333 | V34: =U34*$Z$32 -> 3.964236111 | W34: 30000 | X34: =$V$7 -> 100
T38: Cost of ownership per time - replacement only
U39: 0 | V39: 6 | W39: 12 | X39: 18 | Y39: 24 | Z39: 30 | AA39: 36 | AB39: 42 | AC39: 48 | AD39: 54 | AE39: 60
S40: bike | T40: =$M$8 -> Chain | U40: 0 | V40: =V39*$V$33 -> 57.5 | W40: =W39*$V$33 -> 115 | X40: 172.5 | Y40: 230 | Z40: 287.5 | AA40: 345 | AB40: 402.5 | AC40: 460 | AD40: 517.5 | AE40: 575
T41: =T34 -> CDX | U41: 0 | V41: =V39*$V$34 -> 23.78541667 | W41: =W39*$V$34 -> 47.57083333 | X41: 71.35625 | Y41: 95.14166667 | Z41: 118.9270833 | AA41: 142.7125 | AB41: 166.4979167 | AC41: 190.2833333 | AD41: 214.06875 | AE41: 237.8541667
S42: fleet | T42: =$M$8 -> Chain | U42: 0 | V42: =V40*$E$9 -> 172500 | W42: =W40*$E$9 -> 345000 | X42: 517500 | Y42: 690000 | Z42: 862500 | AA42: 1035000 | AB42: 1207500 | AC42: 1380000 | AD42: 1552500 | AE42: 1725000
T43: =T34 -> CDX | U43: =U41*$E$9 -> 0 | V43: =V41*$E$9 -> 71356.25 | W43: 142712.5 | X43: 214068.75 | Y43: 285425 | Z43: 356781.25 | AA43: 428137.5 | AB43: 499493.75 | AC43: 570850 | AD43: 642206.25 | AE43: 713562.5
T45: Cost of ownership per km - replacement only
U46: 0 | V46: 4000 | W46: 8000 | X46: 12000 | Y46: 16000 | Z46: 20000 | AA46: 24000 | AB46: 28000 | AC46: 32000 | AD46: 36000 | AE46: 40000
S47: bike | T47: =$M$8 -> Chain | U47: =U40 -> 0 | V47: =V46*$U$33 -> 46 | W47: =W46*$U$33 -> 92 | X47: 138 | Y47: 184 | Z47: 230 | AA47: 276 | AB47: 322 | AC47: 368 | AD47: 414 | AE47: =AE46*$U$33 -> 460
T48: =T34 -> CDX | U48: =U41 -> 0 | V48: =V46*$U$34 -> 19.02833333 | W48: =W46*$U$34 -> 38.05666667 | X48: 57.085 | Y48: 76.11333333 | Z48: 95.14166667 | AA48: 114.17 | AB48: 133.1983333 | AC48: 152.2266667 | AD48: 171.255 | AE48: =AE46*$U$34 -> 190.2833333
S49: fleet | T49: =$M$8 -> Chain | U49: =U42 -> 0 | V49: =V47*$E$9 -> 138000 | W49: =W47*$E$9 -> 276000 | X49: 414000 | Y49: 552000 | Z49: 690000 | AA49: 828000 | AB49: 966000 | AC49: 1104000 | AD49: 1242000 | AE49: 1380000
T50: =T34 -> CDX | U50: =U43 -> 0 | V50: =V48*$E$9 -> 57085 | W50: 114170 | X50: 171255 | Y50: 228340 | Z50: 285425 | AA50: 342510 | AB50: 399595 | AC50: 456680 | AD50: 513765 | AE50: 570850
T52: Cashflow influence per time
U53: 0 | V53: 6 | W53: 12 | X53: 18 | Y53: 24 | Z53: 30 | AA53: 36 | AB53: 42 | AC53: 48 | AD53: 54 | AE53: 60
S54: fleet | T54: =$M$8 -> Chain | U54: =AF64 -> 45000 | V54: =AF65 -> 345000 | W54: =AF66 -> 645000 | X54: =AF67 -> 945000 | Y54: =AF68 -> 1245000 | Z54: =AF69 -> 1545000 | AA54: =AF70 -> 1845000 | AB54: =AF71 -> 2145000 | AC54: =AF72 -> 2445000 | AD54: =AF73 -> 2745000 | AE54: =AF74 -> 3045000
T55: =T34 -> CDX | U55: =AG64 -> 300000 | V55: =AG65 -> 300318.75 | W55: =AG66 -> 300637.5 | X55: =AG67 -> 300956.25 | Y55: =AG68 -> 301275 | Z55: =AG69 -> 301593.75 | AA55: =AG70 -> 729412.5 | AB55: =AG71 -> 729731.25 | AC55: =AG72 -> 730050 | AD55: =AG73 -> 730368.75 | AE55: =AG74 -> 730687.5
V62: Used drives | X62: Start | Z62: Repair | AB62: Replaced | AD62: Total | AF62: Total fleet | AI62: km per Repair only
T63: months | U63: km | V63: =$T$33 -> Chain | W63: =$T$34 -> CDX | X63: =$T$33 -> Chain | Y63: =$T$34 -> CDX | Z63: =$T$33 -> Chain | AA63: =$T$34 -> CDX | AB63: =$T$33 -> Chain | AC63: =$T$34 -> CDX | AD63: =$T$33 -> Chain | AE63: =$T$34 -> CDX | AF63: =$T$33 -> Chain | AG63: =$T$34 -> CDX | AI63: =$T$33 -> Chain | AJ63: =$T$34 -> CDX
T64: 0 | U64: =T64*$Z$32 -> 0 | V64: =FLOOR(U64/$W$33,1) -> 0 | W64: =FLOOR(U64/$W$34,1) -> 0 | X64: =$X$33 -> 15 | Y64: =$X$34 -> 100 | Z64: 0 | AA64: 0 | AB64: 0 | AC64: 0 | AD64: =AB64+Z64+X64 -> 15 | AE64: =AC64+AA64+Y64 -> 100 | AF64: =AD64*$E$9 -> 45000 | AG64: =AE64*$E$9 -> 300000 | AI64: =$E$15/$E$16 -> 5000
T65: 6 | U65: =T65*$Z$32 -> 5000 | V65: =FLOOR(U65/$W$33,1) -> 1 | W65: =FLOOR(U65/$W$34,1) -> 0 | X65: =$X$33 -> 15 | Y65: =$X$34 -> 100 | Z65: =(($E$17*$E$18)+$E$19)*U65/$AI$64 -> 42.5 | AA65: =(($E$17*$E$18)+$E$19)*(($O$1/12)*T65) -> 0.10625 | AB65: =V65*(X65+($E$17*$E$18)+$E$19) -> 57.5 | AC65: =W65*(Y65+($E$17*$E$18)+$E$19) -> 0 | AD65: =AB65+Z65+X65 -> 115 | AE65: =AC65+AA65+Y65 -> 100.10625 | AF65: =AD65*$E$9 -> 345000 | AG65: =AE65*$E$9 -> 300318.75
T66: 12 | U66: 10000 | V66: =FLOOR(U66/$W$33,1) -> 2 | W66: =FLOOR(U66/$W$34,1) -> 0 | X66: 15 | Y66: 100 | Z66: =(($E$17*$E$18)+$E$19)*U66/$AI$64 -> 85 | AA66: =(($E$17*$E$18)+$E$19)*(($O$1/12)*T66) -> 0.2125 | AB66: =V66*(X66+($E$17*$E$18)+$E$19) -> 115 | AC66: =W66*(Y66+($E$17*$E$18)+$E$19) -> 0 | AD66: =AB66+Z66+X66 -> 215 | AE66: =AC66+AA66+Y66 -> 100.2125 | AF66: =AD66*$E$9 -> 645000 | AG66: =AE66*$E$9 -> 300637.5
T67: 18 | U67: 15000 | V67: 3 | W67: 0 | X67: 15 | Y67: 100 | Z67: 127.5 | AA67: 0.31875 | AB67: 172.5 | AC67: 0 | AD67: 315 | AE67: 100.31875 | AF67: 945000 | AG67: 300956.25
T68: 24 | U68: 20000 | V68: 4 | W68: 0 | X68: 15 | Y68: 100 | Z68: 170 | AA68: 0.425 | AB68: 230 | AC68: 0 | AD68: 415 | AE68: 100.425 | AF68: 1245000 | AG68: 301275
T69: 30 | U69: 25000 | V69: 5 | W69: 0 | X69: 15 | Y69: 100 | Z69: 212.5 | AA69: 0.53125 | AB69: 287.5 | AC69: 0 | AD69: 515 | AE69: 100.53125 | AF69: 1545000 | AG69: 301593.75
T70: 36 | U70: 30000 | V70: 6 | W70: 1 | X70: 15 | Y70: 100 | Z70: 255 | AA70: 0.6375 | AB70: 345 | AC70: 142.5 | AD70: 615 | AE70: 243.1375 | AF70: 1845000 | AG70: 729412.5
T71: 42 | U71: 35000 | V71: 7 | W71: 1 | X71: 15 | Y71: 100 | Z71: 297.5 | AA71: 0.74375 | AB71: 402.5 | AC71: 142.5 | AD71: 715 | AE71: 243.24375 | AF71: 2145000 | AG71: 729731.25
T72: 48 | U72: 40000 | V72: 8 | W72: 1 | X72: 15 | Y72: 100 | Z72: 340 | AA72: 0.85 | AB72: 460 | AC72: 142.5 | AD72: 815 | AE72: 243.35 | AF72: 2445000 | AG72: 730050
T73: 54 | U73: 45000 | V73: 9 | W73: 1 | X73: 15 | Y73: 100 | Z73: 382.5 | AA73: 0.95625 | AB73: 517.5 | AC73: 142.5 | AD73: 915 | AE73: 243.45625 | AF73: 2745000 | AG73: 730368.75
T74: 60 | U74: 50000 | V74: 10 | W74: 1 | X74: 15 | Y74: 100 | Z74: 425 | AA74: 1.0625 | AB74: 575 | AC74: 142.5 | AD74: 1015 | AE74: 243.5625 | AF74: 3045000 | AG74: 730687.5
T83: # bikes | V83: =E9 -> 3000
T84: # of defects per hub per year | V84: =E16 -> 2
T85: Repair Turn Around Time | V85: =M17 -> 4
T87: Out of order days per year | V87: =V84*V85 -> 8
T89: Percentage out of order | V89: =V87/365 -> 0.02191780822
T90: Bikes out of order | V90: =V83*V89 -> 65.75342466
T91: Dead investment | V91: =V90*M11 -> 59178.08219
T92: Investment value defective stock
T97: Cost of Ownership
W98: 20000
T99: =$M$8 -> Chain | W99: =W98/E15/E16 -> 1
